fUSD/lending_fUSD_20240318
["ID","MTS","AMOUNT","RATE_DAILY","PERIOD"]
[319456719,1710784242743,-500.0,0.00021917,2]
[319456720,1710784242752,-500.0,0.00021917,2]
[319456721,1710784242763,-500.0,0.00021917,2]
[319456722,1710784242772,-1399.68,0.00021917,2]
[319456723,1710784242782,-500.0,0.00021917,2]
[319456724,1710784242791,-1221.95,0.00021917,2]
[319456725,1710784242801,-500.0,0.00021917,2]
[319456726,1710784242810,-500.0,0.00021917,2]
[319456728,1710784242819,-500.0,0.00021917,2]
[319456730,1710784242829,-500.0,0.00021917,2]
[319456732,1710784242838,-500.0,0.00021917,2]
[319456734,1710784242848,-500.0,0.00021917,2]
[319456736,1710784242857,-590.94,0.00021917,2]
[319456738,1710784242867,-1681.58,0.00021917,2]
[319456741,1710784242877,-500.0,0.00021917,2]
[319456742,1710784242886,-500.0,0.00021917,2]
[319456745,1710784242897,-1526.19,0.00021917,2]
[319456747,1710784242906,-500.0,0.00021917,2]
[319456749,1710784242915,-500.0,0.00021917,2]
[319456751,1710784242925,-934.32,0.00021917,2]
[319456753,1710784242937,-500.0,0.00021917,2]
[319456755,1710784242946,-669.5,0.00021917,2]
[319456757,1710784242955,-500.0,0.00021917,2]
[319456758,1710784242965,-500.0,0.00021917,2]
[319456760,1710784242975,-662.93,0.00021917,2]
[319456763,1710784242985,-500.0,0.00021917,2]
[319456767,1710784242995,-500.0,0.00021917,2]
[319456771,1710784243004,-500.0,0.00021917,2]
[319456774,1710784243013,-869.09,0.00021917,2]
[319456776,1710784243023,-500.0,0.00021917,2]
[319456777,1710784243032,-709.56,0.00021917,2]
[319456778,1710784243046,-500.0,0.00021917,2]
[319456779,1710784243055,-500.0,0.00021917,2]
[319456780,1710784243064,-500.0,0.00021917,2]
[319456782,1710784243074,-500.0,0.00021917,2]
[319456783,1710784243084,-500.0,0.00021917,2]
[319456784,1710784243093,-500.0,0.00021917,2]
[319456785,1710784243102,-500.0,0.00021917,2]
[319456786,1710784243111,-500.0,0.00021917,2]
[319456787,1710784243120,-630.50103634,0.00021917,2]
[319456788,1710784243129,-500.0,0.00021917,2]
[319456789,1710784243138,-1071.54,0.00021917,2]
[319456790,1710784243149,-500.0,0.00021917,2]
[319456791,1710784243158,-500.0,0.00021917,2]
[319456792,1710784243168,-500.0,0.00021917,2]
[319456793,1710784243177,-500.0,0.00021917,2]
[319456794,1710784243189,-534.55424196,0.00021917,2]
[319456795,1710784243198,-534.01,0.00021917,2]
[319456796,1710784243208,-500.0,0.00021917,2]
[319456797,1710784243217,-500.0,0.00021917,2]
[319456798,1710784243227,-500.0,0.00021917,2]
[319456799,1710784243236,-500.0,0.00021917,2]
[319456800,1710784243246,-500.0,0.00021917,2]
[319456801,1710784243255,-500.0,0.00021917,2]
[319456802,1710784243264,-500.0,0.00021917,2]
[319456803,1710784243273,-500.0,0.00021917,2]
[319456804,1710784243282,-500.0,0.00021917,2]
[319456805,1710784243291,-500.0,0.00021917,2]
[319456806,1710784243301,-500.0,0.00021917,2]
[319456807,1710784243310,-500.0,0.00021917,2]
[319456808,1710784243320,-672.25,0.00021917,2]
[319456809,1710784243329,-715.37,0.00021917,2]
[319456810,1710784243339,-500.0,0.00021917,2]
[319456811,1710784243348,-500.0,0.00021917,2]
[319456812,1710784243357,-943.32,0.00021917,2]
[319456813,1710784243367,-500.0,0.00021917,2]
[319456814,1710784243377,-500.0,0.00021917,2]
[319456815,1710784243386,-620.6430374,0.00021917,2]
[319456816,1710784243395,-500.0,0.00021917,2]
[319456817,1710784243405,-500.0,0.00021917,2]
[319456818,1710784243416,-500.0,0.00021917,2]
[319456819,1710784243426,-500.0,0.00021917,2]
[319456820,1710784243439,-500.0,0.00021917,2]
[319456821,1710784243449,-500.0,0.00021917,2]
[319456822,1710784243458,-500.0,0.00021917,2]
[319456823,1710784243467,-545.16733724,0.00021917,2]
[319456824,1710784243477,-500.0,0.00021917,2]
[319456825,1710784243486,-648.73,0.00021917,2]
[319456826,1710784243496,-500.0,0.00021917,2]
[319456827,1710784243505,-500.0,0.00021917,2]
[319456828,1710784243514,-500.0,0.00021917,2]
[319456829,1710784243523,-500.0,0.00021917,2]
[319456830,1710784243533,-500.0,0.00021917,2]
[319456831,1710784243543,-541.01,0.00021917,2]
[319456832,1710784243552,-500.0,0.00021917,2]
[319456833,1710784243562,-500.0,0.00021917,2]
[319456834,1710784243571,-500.0,0.00021917,2]
[319456835,1710784243580,-500.0,0.00021917,2]
[319456836,1710784243590,-517.67,0.00021917,2]
[319456838,1710784243599,-500.0,0.00021917,2]
[319456840,1710784243609,-500.0,0.00021917,2]
[319456842,1710784243618,-500.0,0.00021917,2]
[319456844,1710784243627,-500.0,0.00021917,2]
[319456846,1710784243636,-500.0,0.00021917,2]
[319456848,1710784243645,-579.46597714,0.00021917,2]
[319456850,1710784243654,-500.0,0.00021917,2]
[319456852,1710784243663,-500.0,0.00021917,2]
[319456854,1710784243672,-500.0,0.00021917,2]
[319456856,1710784243681,-528.32,0.00021917,2]
[319456858,1710784243692,-500.0,0.00021917,2]
[319456859,1710784243701,-723.89,0.00021917,2]
[319456861,1710784243711,-546.3,0.00021917,2]
[319456863,1710784243720,-501.52885809,0.00021917,2]
[319456865,1710784243729,-500.0,0.00021917,2]
[319456867,1710784243739,-500.0,0.00021917,2]
[319456869,1710784243748,-500.0,0.00021917,2]
[319456871,1710784243756,-500.0,0.00021917,2]
[319456873,1710784243766,-500.0,0.00021917,2]
[319456875,1710784243775,-507.61928191,0.00021917,2]
[319456877,1710784243784,-662.78,0.00021917,2]
[319456879,1710784243793,-500.0,0.00021917,2]
[319456880,1710784243803,-500.0,0.00021917,2]
[319456882,1710784243812,-500.0,0.00021917,2]
[319456884,1710784243822,-509.52018752,0.00021917,2]
[319456886,1710784243831,-1413.74,0.00021917,2]
[319456888,1710784243841,-500.0,0.00021917,2]
[319456890,1710784243850,-522.68570021,0.00021917,2]
[319456892,1710784243859,-500.0,0.00021917,2]
[319456894,1710784243869,-500.0,0.00021917,2]
[319456896,1710784243879,-500.0,0.00021917,2]
[319456898,1710784243888,-500.0,0.00021917,2]
[319456900,1710784243897,-500.0,0.00021917,2]
[319456902,1710784243907,-500.0,0.00021917,2]
[319456904,1710784243917,-661.13,0.00021917,2]
[319456905,1710784243926,-641.12,0.00021917,2]
[319456906,1710784243939,-500.0,0.00021917,2]
[319456907,1710784243948,-500.0,0.00021917,2]
[319456908,1710784243959,-500.0,0.00021917,2]
[319456909,1710784243968,-500.0,0.00021917,2]
[319456910,1710784243978,-500.0,0.00021917,2]
[319456911,1710784243987,-500.0,0.00021917,2]
[319456912,1710784243997,-500.0,0.00021917,2]
[319456913,1710784244007,-1163.14,0.00021917,2]
[319456914,1710784244017,-500.0,0.00021917,2]
[319456915,1710784244025,-500.0,0.00021917,2]
[319456916,1710784244035,-500.0,0.00021917,2]
[319456917,1710784244045,-1252.69,0.00021917,2]
[319456918,1710784244054,-500.0,0.00021917,2]
[319456919,1710784244064,-500.0,0.00021917,2]
[319456920,1710784244074,-500.0,0.00021917,2]
[319456921,1710784244084,-1559.08,0.00021917,2]
[319456922,1710784244093,-500.0,0.00021917,2]
[319456923,1710784244103,-500.0,0.00021917,2]
[319456924,1710784244112,-500.0,0.00021917,2]
[319456925,1710784244122,-500.0,0.00021917,2]
[319456926,1710784244131,-500.0,0.00021917,2]
[319456927,1710784244142,-500.0,0.00021917,2]
[319456928,1710784244151,-500.0,0.00021917,2]
[319456929,1710784244161,-747.3,0.00021917,2]
[319456930,1710784244171,-500.0,0.00021917,2]
[319456931,1710784244180,-1721.43,0.00021917,2]
[319456932,1710784244195,-500.0,0.00021917,2]
[319456933,1710784244205,-836.79,0.00021917,2]
[319456934,1710784244214,-500.0,0.00021917,2]
[319456935,1710784244223,-500.0,0.00021917,2]
[319456936,1710784244232,-500.0,0.00021917,2]
[319456937,1710784244241,-500.0,0.00021917,2]
[319456938,1710784244251,-500.0,0.00021917,2]
[319456939,1710784244261,-500.0,0.00021917,2]
[319456940,1710784244272,-1077.67,0.00021917,2]
[319456941,1710784244282,-500.0,0.00021917,2]
[319456942,1710784244293,-500.0,0.00021917,2]
[319456943,1710784244304,-500.0,0.00021917,2]
[319456944,1710784244314,-500.0,0.00021917,2]
[319456945,1710784244324,-635.79822945,0.00021917,2]
[319456946,1710784244335,-720.89,0.00021917,2]
[319456947,1710784244345,-500.0,0.00021917,2]
[319456948,1710784244356,-500.0,0.00021917,2]
[319456949,1710784244365,-500.0,0.00021917,2]
[319456950,1710784244374,-500.0,0.00021917,2]
[319456951,1710784244383,-500.0,0.00021917,2]
[319456952,1710784244393,-500.0,0.00021917,2]
[319456953,1710784244402,-500.0,0.00021917,2]
[319456954,1710784244411,-500.0,0.00021917,2]
[319456955,1710784244420,-500.0,0.00021917,2]
[319456956,1710784244432,-500.0,0.00021917,2]
[319456957,1710784244448,-500.0,0.00021917,2]
[319456958,1710784244457,-2338.91,0.00021917,2]
[319456959,1710784244466,-500.0,0.00021917,2]
[319456960,1710784244476,-605.7,0.00021917,2]
[319456961,1710784244485,-500.0,0.00021917,2]
[319456962,1710784244495,-500.0,0.00021917,2]
[319456963,1710784244504,-500.0,0.00021917,2]
[319456964,1710784244514,-500.0,0.00021917,2]
[319456965,1710784244523,-500.0,0.00021917,2]
[319456966,1710784244533,-500.0,0.00021917,2]
[319456967,1710784244543,-500.0,0.00021917,2]
[319456968,1710784244552,-500.0,0.00021917,2]
[319456969,1710784244562,-678.54,0.00021917,2]
[319456970,1710784244572,-500.0,0.00021917,2]
[319456971,1710784244582,-500.0,0.00021917,2]
[319456972,1710784244591,-500.0,0.00021917,2]
[319456973,1710784244601,-696.84,0.00021917,2]
[319456974,1710784244610,-500.0,0.00021917,2]
[319456975,1710784244619,-500.0,0.00021917,2]
[319456976,1710784244629,-500.0,0.00021917,2]
[319456977,1710784244638,-500.0,0.00021917,2]
[319456978,1710784244647,-613.37,0.00021917,2]
[319456979,1710784244656,-500.0,0.00021917,2]
[319456980,1710784244664,-500.0,0.00021917,2]
[319456981,1710784244673,-984.39,0.00021917,2]
[319456982,1710784244682,-500.0,0.00021917,2]
[319456983,1710784244698,-1015.6,0.00021917,2]
[319456984,1710784244707,-500.0,0.00021917,2]
[319456985,1710784244716,-500.0,0.00021917,2]
[319456986,1710784244726,-500.0,0.00021917,2]
[319456987,1710784244736,-606.47,0.00021917,2]
[319456988,1710784244744,-500.0,0.00021917,2]
[319456989,1710784244753,-500.0,0.00021917,2]
[319456990,1710784244762,-500.0,0.00021917,2]
[319456991,1710784244772,-1123.9,0.00021917,2]
[319456992,1710784244781,-500.0,0.00021917,2]
[319456993,1710784244790,-662.34,0.00021917,2]
[319456994,1710784244801,-500.0,0.00021917,2]
[319456995,1710784244810,-500.0,0.00021917,2]
[319456996,1710784244819,-500.0,0.00021917,2]
[319456997,1710784244829,-500.0,0.00021917,2]
[319456998,1710784244839,-500.0,0.00021917,2]
[319456999,1710784244848,-500.0,0.00021917,2]
[319457000,1710784244858,-500.0,0.00021917,2]
[319457001,1710784244867,-500.0,0.00021917,2]
[319457002,1710784244876,-500.0,0.00021917,2]
[319457003,1710784244885,-500.0,0.00021917,2]
[319457004,1710784244895,-500.0,0.00021917,2]
[319457005,1710784244905,-500.0,0.00021917,2]
[319457006,1710784244914,-500.0,0.00021917,2]
[319457007,1710784244924,-758.83,0.00021917,2]
[319457008,1710784244933,-500.0,0.00021917,2]
[319457009,1710784244949,-508.19,0.00021917,2]
[319457010,1710784244959,-607.81752582,0.00021917,2]
[319457011,1710784244969,-4638.34,0.00021917,2]
[319457012,1710784244979,-532.16,0.00021917,2]
[319457013,1710784244989,-500.0,0.00021917,2]
[319457014,1710784245000,-500.0,0.00021917,2]
[319457015,1710784245013,-2279.79,0.00021917,2]
[319457016,1710784245023,-500.0,0.00021917,2]
[319457017,1710784245033,-500.0,0.00021917,2]
[319457018,1710784245048,-1900.68,0.00021917,2]
[319457019,1710784245058,-735.47,0.00021917,2]
[319457020,1710784245068,-684.57,0.00021917,2]
[319457021,1710784245078,-500.0,0.00021917,2]
[319457022,1710784245089,-2030.94,0.00021917,2]
[319457023,1710784245100,-500.0,0.00021917,2]
[319457024,1710784245110,-2257.8,0.00021917,2]
[319457025,1710784245120,-500.0,0.00021917,2]
[319457026,1710784245130,-500.0,0.00021917,2]
[319457027,1710784245141,-500.0,0.00021917,2]
[319457028,1710784245152,-500.0,0.00021917,2]
[319457029,1710784245163,-1158.94,0.00021917,2]
[319457030,1710784245173,-679.51,0.00021917,2]
[319457031,1710784245184,-438.51604106,0.00021917,2]
[319457032,1710784245202,-500.0,0.00021917,2]
[319457033,1710784245213,-500.0,0.00021917,2]
[319457034,1710784245224,-500.0,0.00021917,2]
[319457035,1710784245235,-500.0,0.00021917,2]
[319457036,1710784245246,-4216.01,0.00021917,2]
[319457037,1710784245257,-2281.73,0.00021917,2]
[319457038,1710784245267,-2064.93,0.00021917,2]
[319457039,1710784245277,-500.0,0.00021917,2]
[319457040,1710784245288,-500.0,0.00021917,2]
[319457041,1710784245486,-523.62,0.00021917,2]
[319457042,1710784245495,-500.0,0.00021917,2]
[319457043,1710784245505,-500.0,0.00021917,2]
[319457044,1710784245514,-500.0,0.00021917,2]
[319457045,1710784245524,-500.0,0.00021917,2]
[319457046,1710784245533,-2058.18,0.00021917,2]
[319457047,1710784245542,-500.0,0.00021917,2]
[319457048,1710784245552,-500.0,0.00021917,2]
[319457049,1710784245561,-337.99308119,0.00021917,2]
[319457050,1710784245570,-1898.82,0.00021917,2]
[319457051,1710784245579,-500.0,0.00021917,2]
[319457052,1710784245588,-500.0,0.00021917,2]
[319457053,1710784245597,-968.27,0.00021917,2]
[319457054,1710784245607,-535.88,0.00021917,2]
[319457055,1710784245616,-500.0,0.00021917,2]
[319457056,1710784245626,-695.47,0.00021917,2]
[319457057,1710784245635,-500.48602302,0.00021917,2]
[319457058,1710784245644,-500.0,0.00021917,2]
[319457059,1710784245653,-1202.51,0.00021917,2]
[319457060,1710784245662,-740.18,0.00021917,2]
[319457061,1710784245671,-2169.44,0.00021917,2]
[319457062,1710784245681,-500.0,0.00021917,2]
[319457063,1710784245695,-500.0,0.00021917,2]
[319457064,1710784245705,-624.37,0.00021917,2]
[319457065,1710784245715,-500.0,0.00021917,2]
[319457066,1710784245724,-500.0,0.00021917,2]
[319457067,1710784245735,-519.64,0.00021917,2]
[319457068,1710784245746,-500.0,0.00021917,2]
[319457069,1710784245756,-500.0,0.00021917,2]
[319457070,1710784245766,-500.0,0.00021917,2]
[319457071,1710784245776,-446.41802776,0.00021917,2]
[319457072,1710784245785,-500.0,0.00021917,2]
[319457073,1710784245795,-2009.45,0.00021917,2]
[319457074,1710784245804,-500.0,0.00021917,2]
[319457075,1710784245815,-500.0,0.00021917,2]
[319457076,1710784245824,-500.0,0.00021917,2]
[319457079,1710784245834,-506.79104029,0.00021917,2]
[319457080,1710784245844,-500.0,0.00021917,2]
[319457082,1710784245853,-500.0,0.00021917,2]
[319457083,1710784245862,-500.0,0.00021917,2]
[319457084,1710784245872,-500.0,0.00021917,2]
[319457085,1710784245881,-817.46,0.00021917,2]
[319457086,1710784245891,-3511.49,0.00021917,2]
[319457087,1710784245900,-500.0,0.00021917,2]
[319457088,1710784245909,-500.0,0.00021917,2]
[319457089,1710784245918,-1382.72,0.00021917,2]
[319457090,1710784245928,-500.0,0.00021917,2]
[319457091,1710784245942,-500.0,0.00021917,2]
[319457092,1710784245951,-500.0,0.00021917,2]
[319457093,1710784245960,-500.0,0.00021917,2]
[319457095,1710784245970,-817.47,0.00021917,2]
[319457097,1710784245980,-805.3,0.00021917,2]
[319457099,1710784245989,-500.0,0.00021917,2]
[319457101,1710784245998,-500.0,0.00021917,2]
[319457102,1710784246009,-500.0,0.00021917,2]
[319457104,1710784246018,-500.0,0.00021917,2]
[319457106,1710784246027,-818.66,0.00021917,2]
[319457107,1710784246038,-500.0,0.00021917,2]
[319457108,1710784246047,-1058.84,0.00021917,2]
[319457110,1710784246057,-500.0,0.00021917,2]
[319457111,1710784246067,-500.0,0.00021917,2]
[319457113,1710784246078,-847.33,0.00021917,2]
[319457115,1710784246088,-500.0,0.00021917,2]
[319457116,1710784246097,-500.0,0.00021917,2]
[319457118,1710784246107,-500.0,0.00021917,2]
[319457120,1710784246116,-1136.83,0.00021917,2]
[319457123,1710784246126,-500.0,0.00021917,2]
[319457124,1710784246135,-500.0,0.00021917,2]
[319457127,1710784246144,-500.0,0.00021917,2]
[319457129,1710784246154,-500.49,0.00021917,2]
[319457131,1710784246163,-500.0,0.00021917,2]
[319457132,1710784246172,-500.0,0.00021917,2]
[319457134,1710784246182,-529.24309709,0.00021917,2]
[319457136,1710784246193,-512.51,0.00021917,2]
[319457138,1710784246202,-500.0,0.00021917,2]
[319457140,1710784246211,-500.0,0.00021917,2]
[319457142,1710784246221,-500.0,0.00021917,2]
[319457144,1710784246231,-914.96,0.00021917,2]
[319457146,1710784246240,-500.0,0.00021917,2]
[319457148,1710784246249,-501.39821634,0.00021917,2]
[319457150,1710784246258,-500.0,0.00021917,2]
[319457152,1710784246267,-797.2,0.00021917,2]
[319457154,1710784246276,-1191.14,0.00021917,2]
[319457157,1710784246285,-183.62650273,0.00021917,2]
[319457158,1710784246294,-500.0,0.00021917,2]
[319457160,1710784246303,-1047.67,0.00021917,2]
[319457162,1710784246312,-720.5,0.00021917,2]
[319457164,1710784246322,-500.0,0.00021917,2]
[319457166,1710784246331,-756.17,0.00021917,2]
[319457168,1710784246340,-500.0,0.00021917,2]
[319457170,1710784246349,-500.0,0.00021917,2]
[319457172,1710784246358,-500.0,0.00021917,2]
[319457174,1710784246367,-500.0,0.00021917,2]
[319457176,1710784246376,-200.0,0.00021917,10]
[319457178,1710784246386,-500.0,0.00021917,2]
[319457180,1710784246395,-500.0,0.00021917,2]
[319457182,1710784246404,-2787.11,0.00021917,2]
[319457184,1710784246414,-720.13,0.00021917,2]
[319457186,1710784246424,-690.89,0.00021917,2]
[319457188,1710784246433,-500.0,0.00021917,2]
[319457190,1710784246445,-500.0,0.00021917,2]
[319457192,1710784246454,-702.48,0.00021917,2]
[319457194,1710784246464,-504.40969437,0.00021917,2]
[319457196,1710784246474,-500.0,0.00021917,2]
[319457198,1710784246483,-500.0,0.00021917,2]
[319457200,1710784246494,-1427.89,0.00021917,2]
[319457202,1710784246504,-500.0,0.00021917,2]
[319457204,1710784246514,-500.0,0.00021917,2]
[319457206,1710784246524,-822.13,0.00021917,2]
[319457208,1710784246534,-500.0,0.00021917,2]
[319457211,1710784246544,-500.0,0.00021917,2]
[319457214,1710784246553,-910.29,0.00021917,2]
[319457217,1710784246563,-526.29817821,0.00021917,2]
[319457218,1710784246572,-761.98,0.00021917,2]
[319457219,1710784246581,-323.54471335,0.00021917,2]
[319457220,1710784246591,-491.24976335,0.00021917,2]
[319457221,1710784246600,-500.0,0.00021917,2]
[319457222,1710784246609,-614.2,0.00021917,2]
[319457223,1710784246619,-500.0,0.00021917,2]
[319457224,1710784246629,-500.0,0.00021917,2]
[319457225,1710784246639,-846.09,0.00021917,2]
[319457226,1710784246648,-554.39,0.00021917,2]
[319457227,1710784246658,-206.6273172,0.00021917,2]
[319457228,1710784246668,-500.0,0.00021917,2]
[319457229,1710784246678,-535.84,0.00021917,2]
[319457230,1710784246690,-500.0,0.00021917,2]
[319457231,1710784246700,-500.0,0.00021917,2]
[319457232,1710784246710,-500.0,0.00021917,2]
[319457233,1710784246720,-500.0,0.00021917,2]
[319457234,1710784246730,-498.82018041,0.00021917,2]
[319457235,1710784246739,-605.51,0.00021917,2]
[319457236,1710784246750,-949.07,0.00021917,2]
[319457237,1710784246760,-406.92640005,0.00021917,2]
[319457238,1710784246770,-500.0,0.00021917,2]
[319457239,1710784246780,-503.55479346,0.00021917,2]
[319457240,1710784246790,-500.0,0.00021917,2]
[319457241,1710784246799,-782.99,0.00021917,2]
[319457242,1710784246809,-500.77425349,0.00021917,2]
[319457243,1710784246818,-1424.89,0.00021917,2]
[319457244,1710784246828,-1579.12,0.00021917,2]
[319457245,1710784246838,-500.0,0.00021917,2]
[319457246,1710784246851,-500.0,0.00021917,2]
[319457247,1710784246860,-500.0,0.00021917,2]
[319457248,1710784246869,-500.0,0.00021917,2]
[319457249,1710784246880,-500.0,0.00021917,2]
[319457250,1710784246889,-500.0,0.00021917,2]
[319457251,1710784246898,-500.0,0.00021917,2]
[319457252,1710784246910,-500.0,0.00021917,2]
[319457253,1710784246920,-500.0,0.00021917,2]
[319457254,1710784246929,-300.10426474,0.00021917,2]
[319457255,1710784246942,-940.81,0.00021917,2]
[319457256,1710784246951,-500.0,0.00021917,2]
[319457257,1710784246960,-543.68,0.00021917,2]
[319457258,1710784246970,-500.0,0.00021917,2]
[319457259,1710784246979,-500.0,0.00021917,2]
[319457260,1710784246989,-500.0,0.00021917,2]
[319457261,1710784246998,-1821.5,0.00021917,2]
[319457262,1710784247007,-781.0,0.00021917,2]
[319457263,1710784247017,-857.19,0.00021917,2]
[319457264,1710784247026,-500.0,0.00021917,2]
[319457265,1710784247036,-500.0,0.00021917,2]
[319457266,1710784247046,-500.0,0.00021917,2]
[319457267,1710784247055,-1400.6,0.00021917,2]
[319457268,1710784247064,-500.0,0.00021917,2]
[319457269,1710784247075,-534.16,0.00021917,2]
[319457270,1710784247084,-508.40318853,0.00021917,2]
[319457271,1710784247093,-1704.6,0.00021917,2]
[319457272,1710784247103,-500.0,0.00021917,2]
[319457273,1710784247113,-1143.85,0.00021917,2]
[319457274,1710784247122,-500.0,0.00021917,2]
[319457275,1710784247131,-500.0,0.00021917,2]
[319457276,1710784247140,-799.43,0.00021917,2]
[319457277,1710784247149,-786.06,0.00021917,2]
[319457278,1710784247159,-500.0,0.00021917,2]
[319457279,1710784247169,-500.0,0.00021917,2]
[319457280,1710784247178,-500.0,0.00021917,2]
[319457281,1710784247189,-500.0,0.00021917,2]
[319457282,1710784247199,-500.0,0.00021917,2]
[319457283,1710784247209,-500.0,0.00021917,2]
[319457284,1710784247218,-897.72,0.00021917,2]
[319457285,1710784247227,-500.0,0.00021917,2]
[319457286,1710784247236,-500.0,0.00021917,2]
[319457287,1710784247246,-500.0,0.00021917,2]
[319457288,1710784247255,-586.91,0.00021917,2]
[319457289,1710784247264,-747.44,0.00021917,2]
[319457290,1710784247273,-500.0,0.00021917,2]
[319457291,1710784247282,-500.53506423,0.00021917,2]
[319457292,1710784247291,-500.0,0.00021917,2]
[319457293,1710784247300,-678.42,0.00021917,2]
[319457294,1710784247310,-500.0,0.00021917,2]
[319457295,1710784247318,-579.41,0.00021917,2]
[319457296,1710784247327,-500.0,0.00021917,2]
[319457297,1710784247338,-500.0,0.00021917,2]
[319457298,1710784247347,-500.0,0.00021917,2]
[319457299,1710784247357,-1823.8,0.00021917,2]
[319457300,1710784247367,-500.0,0.00021917,2]
[319457301,1710784247376,-539.9,0.00021917,2]
[319457302,1710784247385,-500.0,0.00021917,2]
[319457303,1710784247394,-1178.74,0.00021917,2]
[319457304,1710784247403,-500.0,0.00021917,2]
[319457305,1710784247412,-500.0,0.00021917,2]
[319457306,1710784247421,-461.48547345,0.00021917,2]
[319457307,1710784247430,-500.0,0.00021917,2]
[319457308,1710784247440,-500.0,0.00021917,2]
[319457309,1710784247450,-500.0,0.00021917,2]
[319457310,1710784247459,-1018.67,0.00021917,2]
[319457311,1710784247469,-500.0,0.00021917,2]
[319457312,1710784247478,-500.0,0.00021917,2]
[319457313,1710784247488,-500.0,0.00021917,2]
[319457314,1710784247497,-500.0,0.00021917,2]
[319457315,1710784247506,-1499.51,0.00021917,2]
[319457316,1710784247516,-1191.6,0.00021917,2]
[319457317,1710784247526,-593.84,0.00021917,2]
[319457318,1710784247535,-500.0,0.00021917,2]
[319457319,1710784247545,-500.0,0.00021917,2]
[319457320,1710784247554,-500.0,0.00021917,2]
[319457321,1710784247563,-500.0,0.00021917,2]
[319457322,1710784247573,-586.06,0.00021917,2]
[319457323,1710784247583,-500.0,0.00021917,2]
[319457324,1710784247592,-500.0,0.00021917,2]
[319457325,1710784247602,-500.0,0.00021917,2]
[319457326,1710784247612,-500.0,0.00021917,2]
[319457327,1710784247621,-500.0,0.00021917,2]
[319457328,1710784247631,-508.46108399,0.00021917,2]
[319457329,1710784247640,-896.64,0.00021917,2]
[319457330,1710784247650,-1346.06,0.00021917,2]
[319457331,1710784247659,-500.0,0.00021917,2]
[319457332,1710784247669,-500.0,0.00021917,2]
[319457333,1710784247678,-500.0,0.00021917,2]
[319457334,1710784247690,-500.0,0.00021917,2]
[319457335,1710784247700,-500.0,0.00021917,2]
[319457336,1710784247710,-500.0,0.00021917,2]
[319457337,1710784247720,-1586.06,0.00021917,2]
[319457338,1710784247730,-216.49268909,0.00021917,2]
[319457339,1710784247741,-500.0,0.00021917,2]
[319457340,1710784247751,-433.43217516,0.00021917,2]
[319457341,1710784247761,-500.0,0.00021917,2]
[319457342,1710784247772,-774.95,0.00021917,2]
[319457343,1710784247782,-500.0,0.00021917,2]
[319457344,1710784247791,-500.0,0.00021917,2]